fUST/lending_fUST_20250625
["ID","MTS","AMOUNT","RATE_DAILY","PERIOD"]
[367515614,1750839047422,-545.15,0.00019339,2]
[367515615,1750839047435,-799.43,0.00019339,2]
[367515616,1750839047447,-460.0,0.00019339,2]
[367515617,1750839047457,-7715.26,0.00019339,2]
[367515618,1750839047467,-508.90567286,0.00019339,2]
[367515619,1750839047477,-829.05,0.00019339,2]
[367515620,1750839047487,-366.43153139,0.00019339,2]
[367515621,1750839047497,-460.0,0.00019339,2]
[367515622,1750839047508,-748.21,0.00019339,2]
[367515623,1750839047517,-880.99,0.00019339,2]
[367515624,1750839047528,-829.96,0.00019339,2]
[367515625,1750839047537,-529.87,0.00019339,2]
[367515626,1750839047546,-460.0,0.00019339,2]
[367515627,1750839047556,-151.0,0.00019339,2]
[367515628,1750839047566,-460.0,0.00019339,2]
[367515629,1750839047576,-151.0,0.00019339,2]
[367515630,1750839047590,-151.235558,0.00019339,2]
[367515631,1750839047599,-12854.54,0.00019339,2]
[367515632,1750839047610,-151.235558,0.00019339,2]
[367515633,1750839047620,-398.63005472,0.00019339,2]
[367515634,1750839047629,-1501.36,0.00019339,2]
[367515635,1750839047639,-151.0,0.00019339,2]
[367515636,1750839047650,-151.0,0.00019339,2]
[367515637,1750839047659,-151.0,0.00019339,2]
[367515638,1750839047669,-151.0,0.00019339,2]
[367515639,1750839047679,-279.529617,0.00019339,2]
[367515640,1750839047688,-653.32,0.00019339,2]
[367515641,1750839047697,-460.0,0.00019339,2]
[367515642,1750839047707,-263.9953515,0.00019339,2]
[367515643,1750839047717,-151.0,0.00019339,2]
[367515644,1750839047726,-151.0,0.00019339,2]
[367515645,1750839047737,-151.0,0.00019339,2]
[367515646,1750839047747,-151.0,0.00019339,2]
[367515647,1750839047757,-161.44232,0.00019339,2]
[367515648,1750839047766,-151.0,0.00019339,2]
[367515649,1750839047775,-460.0,0.00019339,2]
[367515650,1750839047785,-151.0,0.00019339,2]
[367515651,1750839047795,-151.0,0.00019339,2]
[367515652,1750839047804,-699.29,0.00019339,2]
[367515653,1750839047814,-151.0,0.00019339,2]
[367515654,1750839047823,-551.6,0.0001934,2]
[367515655,1750839047833,-151.0,0.0001934,2]
[367515656,1750839047842,-299.983382,0.0001934,2]
[367515657,1750839047852,-151.0,0.0001934,2]
[367515658,1750839047861,-151.0,0.0001934,2]
[367515659,1750839047870,-362.513812,0.0001934,2]
[367515660,1750839047879,-362.513812,0.0001934,2]
[367515661,1750839047888,-151.0,0.0001934,2]
[367515662,1750839047898,-200.160855,0.0001934,2]
[367515663,1750839047907,-200.160855,0.0001934,2]
[367515664,1750839047917,-151.0,0.0001934,2]
[367515665,1750839047926,-151.0,0.0001934,2]
[367515666,1750839047935,-242.963018,0.0001934,2]
[367515667,1750839047945,-242.963018,0.0001934,2]
[367515668,1750839047954,-151.0,0.0001934,2]
[367515669,1750839047963,-2407.52262414,0.00019348,2]
[367515670,1750839047973,-153.0,0.0001937,2]
[367515671,1750839047982,-153.0,0.0001937,2]
[367515672,1750839047991,-153.0,0.0001937,2]
[367515673,1750839048000,-153.0,0.0001937,2]
[367515674,1750839048009,-153.0,0.00019402,2]
[367515675,1750839048018,-306.0,0.00019402,2]
[367515676,1750839048027,-153.0,0.00019402,2]
[367515677,1750839048037,-154.1940999,0.00019402,2]
[367515678,1750839048046,-153.0,0.00019402,2]
[367515679,1750839048055,-170.5613124,0.00019402,2]
[367515680,1750839048064,-153.0,0.00019402,2]
[367515681,1750839048073,-153.0,0.00019402,2]
[367515682,1750839048082,-153.0,0.00019412,2]
[367515683,1750839048091,-153.0,0.00019412,2]
[367515684,1750839048104,-153.0,0.00019412,2]
[367515685,1750839048113,-66143.00705,0.00019416,2]
[367515686,1750839048123,-11006.79902484,0.00019417,2]
[367515687,1750839048132,-72026.36917598,0.00019417,2]
[367515688,1750839048141,-215.0738,0.00019455,2]
[367515689,1750839048151,-151.0,0.000195,2]
[367515690,1750839048161,-1748.49144637,0.00019513,2]
[367515691,1750839048171,-160.0,0.00019585,3]
[367515692,1750839048180,-2407.52262414,0.0001959,2]
[367515693,1750839048190,-406.0,0.00019594,2]
[367515694,1750839048200,-151.0,0.000196,2]
[367515695,1750839048210,-460.0,0.00019612,2]
[367515696,1750839048219,-739.78,0.00019612,2]
[367515697,1750839048229,-2984.98,0.00019612,2]
[367515698,1750839048239,-1157.71,0.00019612,2]
[367515699,1750839048248,-1963.54,0.00019612,2]
[367515700,1750839048258,-633.92,0.00019612,2]
[367515701,1750839048268,-460.0,0.00019612,2]
[367515702,1750839048277,-4057.44,0.00019612,2]
[367515703,1750839048287,-556.41,0.00019612,2]
[367515704,1750839048297,-735.18,0.00019612,2]
[367515705,1750839048307,-187.1105243,0.00019612,2]
[367515706,1750839048859,-460.0,0.00016872,2]
[367515707,1750839048869,-460.0,0.00016873,2]
[367515708,1750839048879,-460.0,0.00017146,2]
[367515709,1750839048888,-460.0,0.0001742,2]
[367515710,1750839048900,-839.4694757,0.00019612,2]
[367515711,1750839048909,-34305.24929055,0.00019613,2]
[367515712,1750839048919,-460.0,0.00019613,2]
[367515713,1750839048929,-545.15,0.00019613,2]
[367515714,1750839048939,-331.64982824,0.00019613,2]
[367515715,1750839049240,-366.0085437,0.000173,2]
[367515716,1750839049250,-460.0,0.00017694,2]
[367515717,1750839049259,-164.19,0.00017968,2]
[367515718,1750839049270,-467.78017176,0.00019613,2]
[367515719,1750839049280,-455.96,0.00019613,2]
[367515720,1750839049289,-7715.26,0.00019613,2]
[367515721,1750839049299,-829.05,0.00019613,2]
[367515722,1750839049339,-460.0,0.00019613,2]
[367515723,1750839049350,-748.21,0.00019613,2]
[367515724,1750839049360,-880.99,0.00019613,2]
[367515725,1750839049370,-829.96,0.00019613,2]
[367515726,1750839049379,-529.87,0.00019613,2]
[367515727,1750839049388,-460.0,0.00019613,2]
[367515728,1750839049399,-460.0,0.00019613,2]
[367515729,1750839049408,-12854.54,0.00019613,2]
[367515730,1750839049418,-1501.36,0.00019613,2]
[367515731,1750839049428,-653.32,0.00019613,2]
[367515732,1750839049437,-460.0,0.00019613,2]
[367515733,1750839049446,-460.0,0.00019613,2]
[367515734,1750839049456,-699.29,0.00019613,2]
[367515735,1750839049465,-551.6,0.00019614,2]
[367515736,1750839049475,-151.0,0.00019614,2]
[367515737,1750839049485,-151.0,0.00019614,2]
[367515738,1750839049494,-151.0,0.00019614,2]
[367515739,1750839049504,-151.0,0.00019614,2]
[367515740,1750839049513,-151.0,0.00019614,2]
[367515741,1750839049523,-500.0,0.0001966,2]
[367515742,1750839049532,-500.0,0.00019665,2]
[367515743,1750839049542,-500.0,0.00019665,2]
[367515744,1750839049551,-417.31908353,0.00019665,2]
[367515745,1750839049561,-359.60088653,0.00019665,2]
[367515746,1750839049570,-500.0,0.00019665,2]
[367515747,1750839049582,-500.0,0.00019665,2]
[367515748,1750839049592,-500.0,0.00019706,2]
[367515749,1750839049601,-210.01914849,0.00019706,2]
[367515750,1750839049610,-500.0,0.00019706,2]
[367515751,1750839049620,-223.0,0.00019726,3]
[367515752,1750839049629,-5000.0,0.0001973,2]
[367515753,1750839049638,-344.40037225,0.00019762,2]
[367515754,1750839049648,-151.0,0.000198,2]
[367515755,1750839049657,-2407.52262414,0.00019831,2]
[367515756,1750839049666,-168.0,0.00019848,2]
[367515757,1750839049676,-2500.0,0.00019851,2]
[367515758,1750839049685,-533.10314007,0.00019886,2]
[367515759,1750839049694,-739.78,0.00019886,2]
[367515760,1750839049704,-2984.98,0.00019886,2]
[367515761,1750839049713,-1157.71,0.00019886,2]
[367515762,1750839049723,-1963.54,0.00019886,2]
[367515763,1750839049732,-633.92,0.00019886,2]
[367515764,1750839049742,-460.0,0.00019886,2]
[367515765,1750839049751,-4057.44,0.00019886,2]
[367515766,1750839049760,-735.18,0.00019886,2]
[367515767,1750839049770,-1026.58,0.00019886,2]
[367515768,1750839049779,-460.0,0.00019887,2]
[367515769,1750839049788,-545.15,0.00019887,2]
[367515770,1750839049798,-799.43,0.00019887,2]
[367515771,1750839049807,-7715.26,0.00019887,2]
[367515772,1750839049816,-829.05,0.00019887,2]
[367515773,1750839049825,-460.0,0.00019887,2]
[367515774,1750839049835,-748.21,0.00019887,2]
[367515775,1750839049844,-880.99,0.00019887,2]
[367515776,1750839049853,-829.96,0.00019887,2]
[367515777,1750839049863,-529.87,0.00019887,2]
[367515778,1750839049872,-460.0,0.00019887,2]
[367515779,1750839049881,-460.0,0.00019887,2]
[367515780,1750839049891,-12854.54,0.00019887,2]
[367515781,1750839049900,-1501.36,0.00019887,2]
[367515782,1750839049910,-653.32,0.00019887,2]
[367515783,1750839049919,-460.0,0.00019887,2]
[367515784,1750839049928,-460.0,0.00019887,2]
[367515785,1750839049938,-699.29,0.00019887,2]
[367515786,1750839049947,-551.6,0.00019888,2]
[367515787,1750839049956,-151.0,0.00019888,2]
[367515788,1750839049965,-151.0,0.00019888,2]
[367515789,1750839049974,-151.0,0.00019888,2]
[367515790,1750839049984,-151.0,0.00019888,2]
[367515791,1750839049993,-226.044308,0.00019888,2]
[367515792,1750839050002,-151.0,0.00019888,2]
[367515793,1750839050011,-151.0,0.00019888,2]
[367515794,1750839050021,-151.0,0.00019888,2]
[367515795,1750839050035,-151.0,0.00019888,2]
[367515796,1750839050045,-151.0,0.00019888,2]
[367515797,1750839050054,-151.0,0.00019888,2]
[367515798,1750839050063,-151.0,0.00019888,2]
[367515799,1750839050071,-151.0,0.00019888,2]
[367515800,1750839050080,-237.404975,0.00019888,2]
[367515801,1750839050089,-151.0,0.00019888,2]
[367515802,1750839050098,-151.0,0.00019888,2]
[367515803,1750839050108,-151.0,0.00019888,2]
[367515804,1750839050116,-151.0,0.00019888,2]
[367515805,1750839050126,-151.0,0.00019888,2]
[367515806,1750839050135,-281.276653,0.00019888,2]
[367515807,1750839050146,-168.0,0.00019889,2]
[367515808,1750839050156,-151.0,0.000199,2]
[367515809,1750839050165,-30866.9746624,0.0002,2]
[367515810,1750839050174,-151.0,0.0002,2]
[367515811,1750839050183,-151.0,0.0002,2]
[367515812,1750839050192,-362.513812,0.0002,2]
[367515813,1750839050201,-362.513812,0.0002,2]
[367515814,1750839050210,-151.0,0.0002,2]
[367515815,1750839050219,-310.854211,0.0002,2]
[367515816,1750839050228,-320.129366,0.0002,2]
[367515817,1750839050238,-320.129366,0.0002,2]
[367515818,1750839050249,-151.0,0.0002,2]
[367515819,1750839050260,-151.0,0.0002,2]
[367515820,1750839050269,-246.389848,0.0002,2]
[367515821,1750839050279,-765.589427,0.0002,2]
[367515822,1750839050289,-765.589427,0.0002,2]
[367515823,1750839050299,-232.979368,0.0002,2]
[367515824,1750839050309,-232.979368,0.0002,2]
[367515825,1750839050320,-151.0,0.0002,2]
[367515826,1750839050330,-200.160855,0.0002,2]
[367515827,1750839050341,-200.160855,0.0002,2]
[367515828,1750839050352,-151.0,0.0002,2]
[367515829,1750839050362,-151.0,0.0002,2]
[367515830,1750839050372,-300.0,0.0002,2]
[367515831,1750839050382,-242.963018,0.0002,2]
[367515832,1750839050392,-242.963018,0.0002,2]
[367515833,1750839050402,-151.0,0.0002,2]
[367515834,1750839050411,-292.96596,0.0002,2]
[367515835,1750839050421,-151.0,0.0002,2]
[367515836,1750839050431,-151.45456969,0.0002,2]
[367515837,1750839050440,-151.235558,0.0002,2]
[367515838,1750839050449,-151.235558,0.0002,2]
[367515839,1750839050459,-151.0,0.0002,2]
[367515840,1750839050468,-151.0,0.0002,2]
[367515841,1750839050478,-500.0,0.0002,15]
[367515842,1750839050488,-500.0,0.0002,15]
[367515843,1750839050498,-500.0,0.0002,15]
[367515844,1750839050508,-500.0,0.0002,15]
[367515845,1750839050518,-500.0,0.0002,15]
[367515846,1750839050529,-500.0,0.0002,15]
[367515847,1750839050539,-151.0,0.0002,2]
[367515848,1750839050549,-500.0,0.0002,15]
[367515849,1750839050559,-779.75,0.0002,15]
[367515850,1750839050569,-4000.0,0.0002,4]
[367515851,1750839050580,-151.0,0.0002,2]
[367515852,1750839050595,-151.0,0.0002,2]
[367515853,1750839050605,-151.0,0.0002,2]
[367515854,1750839050614,-151.0,0.0002,2]
[367515855,1750839050624,-151.0,0.0002,2]
[367515856,1750839050636,-151.0,0.0002,2]
[367515857,1750839050646,-189.020288,0.0002,2]
[367515858,1750839050657,-151.0,0.0002,2]
[367515859,1750839050666,-965.0,0.00020007,2]
[367515860,1750839050677,-654.0,0.00020007,2]
[367515861,1750839050687,-2161.0,0.00020007,2]
[367515862,1750839050697,-500.0,0.00020041,2]
[367515863,1750839050706,-168.0,0.00020063,2]
[367515864,1750839050716,-2407.52262414,0.00020072,2]
[367515865,1750839050726,-587.0,0.00020132,2]
[367515866,1750839050735,-76712.77779768,0.00020147,2]
[367515867,1750839090817,200.0,0.00023384,120]
[367515868,1750839210810,200.0,0.00023134,120]
[367516125,1750839450788,200.0,0.00024463,120]
[367516126,1750839458975,244.1063477,0.00015872,2]
[367516129,1750839582562,164.1,0.00024658,120]
[367516130,1750839718072,500.0,0.00024657,120]
[367516131,1750839784677,663.0,0.00024657,120]
[367516132,1750839902351,160.779413,0.00013699,2]
[367516303,1750840053354,17124.01360918,0.00015871,2]
[367516304,1750840053382,6083.72208132,0.00015871,2]
[367516339,1750840111090,200.0,0.00024089,120]
[367516550,1750840232706,-268.22708532,0.00016768,2]
[367516552,1750840232716,-218.55488826,0.0001677,2]
[367516555,1750840232727,-300.0,0.00016867,2]
[367516557,1750840232739,-300.0,0.00016867,2]
[367516559,1750840232749,-1200.0,0.00016867,2]
[367516561,1750840232758,-8531.80425377,0.00016868,2]
[367516562,1750840232768,-300.0,0.00016868,2]
[367516565,1750840232778,-460.0,0.00016868,2]
[367516567,1750840232788,-490.69,0.00016868,2]
[367516569,1750840232798,-1865.62,0.00016868,2]
[367516570,1750840232807,-677.74,0.00016868,2]
[367516572,1750840232817,-2993.54,0.00016868,2]
[367516574,1750840232827,-460.0,0.00016868,2]
[367516576,1750840232836,-460.0,0.00016868,2]
[367516578,1750840232845,-460.0,0.00016868,2]
[367516580,1750840232855,-224.16757188,0.00016868,2]
[367516582,1750840232864,-460.0,0.00016869,2]
[367516584,1750840232873,-606.63,0.00016869,2]
[367516586,1750840232883,-460.0,0.00016869,2]
[367516588,1750840232892,-460.0,0.00016869,2]
[367516590,1750840232902,-460.0,0.00016869,2]
[367516592,1750840232912,-460.0,0.00016869,2]
[367516594,1750840232922,-518.73,0.00016869,2]
[367516596,1750840232932,-460.0,0.00016869,2]
[367516598,1750840232942,-542.7,0.00016869,2]
[367516600,1750840232951,-460.0,0.00016869,2]
[367516602,1750840232961,-515.32907983,0.00016869,2]
[367516604,1750840232970,-460.0,0.00016869,2]
[367516606,1750840232981,-7498.48,0.00016869,2]
[367516608,1750840232991,-460.0,0.00016869,2]
[367516610,1750840233000,-471.94992726,0.00016869,2]
[367516611,1750840233010,-460.0,0.00016869,2]
[367516612,1750840233020,-494.56,0.00016869,2]
[367516613,1750840233030,-938.35,0.00016869,2]
[367516615,1750840233040,-460.0,0.0001687,2]
[367516617,1750840233050,-460.0,0.0001687,2]
[367516619,1750840233059,-460.0,0.0001687,2]
[367516621,1750840233069,-500.0,0.0001687,2]
[367516623,1750840233079,-500.0,0.0001687,2]
[367516625,1750840233089,-460.0,0.0001687,2]
[367516626,1750840233098,-460.0,0.0001687,2]
[367516627,1750840233108,-460.0,0.0001687,2]
[367516628,1750840233117,-460.0,0.0001687,2]
[367516630,1750840233127,-460.0,0.0001687,2]
[367516631,1750840233137,-460.0,0.0001687,2]
[367516633,1750840233146,-460.0,0.0001687,2]
[367516635,1750840233155,-460.0,0.0001687,2]
[367516637,1750840233165,-460.0,0.0001687,2]
[367516639,1750840233174,-460.0,0.0001687,2]
[367516641,1750840233184,-460.0,0.0001687,2]
[367516643,1750840233193,-460.0,0.0001687,2]
[367516644,1750840233203,-460.0,0.0001687,2]
[367516646,1750840233213,-460.0,0.0001687,2]
[367516647,1750840233222,-460.0,0.0001687,2]
[367516648,1750840233232,-460.0,0.0001687,2]
[367516650,1750840233242,-460.0,0.0001687,2]
[367516652,1750840233252,-460.0,0.0001687,2]
[367516653,1750840233262,-460.0,0.0001687,2]
[367516655,1750840233271,-460.0,0.0001687,2]
[367516657,1750840233282,-693.84,0.0001687,2]
[367516658,1750840233292,-460.0,0.0001687,2]
[367516659,1750840233301,-460.0,0.0001687,2]
[367516660,1750840233311,-460.0,0.0001687,2]
[367516661,1750840233320,-460.0,0.0001687,2]
[367516662,1750840233330,-460.0,0.0001687,2]
[367516663,1750840233340,-460.0,0.0001687,2]
[367516664,1750840233350,-460.0,0.0001687,2]
[367516665,1750840233359,-486.8,0.0001687,2]
[367516666,1750840233370,-328.90576635,0.0001687,2]
[367516667,1750840233379,-460.0,0.0001687,2]
[367516668,1750840233389,-460.0,0.0001687,2]
[367516669,1750840233399,-4900.23,0.0001687,2]
[367516670,1750840233409,-460.0,0.0001687,2]
[367516671,1750840233418,-472.8720804,0.0001687,2]
[367516672,1750840233428,-533.08,0.0001687,2]
[367516673,1750840233438,-460.0,0.0001687,2]
[367516674,1750840233447,-460.0,0.0001687,2]
[367516675,1750840233457,-513.75,0.0001687,2]
[367516676,1750840233466,-54.09450813,0.0001687,2]
[367516677,1750840233480,-405.90549187,0.0001687,2]
[367516678,1750840233490,-460.0,0.0001687,2]
[367516679,1750840233500,-460.0,0.0001687,2]
[367516680,1750840233510,-460.0,0.0001687,2]
[367516681,1750840233520,-460.0,0.0001687,2]
[367516682,1750840233530,-460.0,0.0001687,2]
[367516683,1750840233539,-460.0,0.0001687,2]
[367516684,1750840233549,-460.0,0.0001687,2]
[367516685,1750840233559,-460.0,0.0001687,2]
[367516686,1750840233569,-500.0,0.00016871,2]
[367516687,1750840233579,-500.0,0.00016871,2]
[367516688,1750840233589,-460.0,0.00016871,2]
[367516689,1750840233598,-443.19302072,0.00016871,2]
[367516690,1750840233608,-460.0,0.00016871,2]
[367516691,1750840233617,-460.0,0.00016871,2]
[367516692,1750840233627,-460.0,0.00016871,2]
[367516693,1750840233637,-500.0,0.00016871,2]
[367516694,1750840233647,-246.40617602,0.00016871,2]
[367516695,1750840233659,-253.59382398,0.00016871,2]
[367516696,1750840233669,-226.40617602,0.00016871,2]
[367516697,1750840233811,-273.59382398,0.00016871,2]
[367516698,1750840233822,-227.00118602,0.00016871,2]
[367516699,1750840234670,200.0,0.00024226,120]
[367516718,1750840238017,-413.300005,0.00016868,2]
[367516723,1750840238072,-2122.599995,0.00016868,2]
[367516724,1750840238082,-490.48,0.00016869,2]
[367516725,1750840238091,-500.0,0.0001687,2]
[367516727,1750840238101,-500.0,0.0001687,2]
[367516729,1750840238110,-625.21553785,0.0001687,2]
[367516730,1750840238119,-500.0,0.0001687,2]
[367516731,1750840238128,-500.0,0.0001687,2]
[367516732,1750840238138,-500.0,0.0001687,2]
[367516733,1750840238147,-500.0,0.0001687,2]
[367516734,1750840238156,-500.0,0.0001687,2]
[367516735,1750840238165,-500.0,0.0001687,2]
[367516736,1750840238175,-500.0,0.0001687,2]
[367516737,1750840238184,-500.0,0.0001687,2]
[367516738,1750840238193,-500.0,0.0001687,2]
[367516739,1750840238202,-336.94452018,0.0001687,2]
[367516740,1750840238211,-500.0,0.0001687,2]
[367516741,1750840238220,-500.0,0.0001687,2]
[367516742,1750840238230,-391.08881398,0.00016871,2]
[367516743,1750840238240,-345.97637624,0.00016871,2]
[367516744,1750840238250,-460.0,0.00016871,2]
[367516745,1750840238259,-460.5645774,0.00016871,2]
[367516746,1750840238269,-460.0,0.00016871,2]
[367516747,1750840238278,-460.0,0.00016871,2]
[367516748,1750840238288,-460.0,0.00016871,2]
[367516749,1750840238298,-460.0,0.00016871,2]
[367516750,1750840238307,-460.0,0.00016871,2]
[367516751,1750840238317,-460.0,0.00016871,2]
[367516752,1750840238327,-460.0,0.00016871,2]
[367516753,1750840238336,-460.0,0.00016871,2]
[367516754,1750840238345,-460.0,0.00016871,2]
[367516755,1750840238355,-460.0,0.00016871,2]
[367516756,1750840238364,-460.0,0.00016871,2]
[367516757,1750840238374,-460.0,0.00016871,2]
[367516758,1750840238383,-463.98790852,0.00016872,2]
[367516759,1750840238392,-384.13,0.00016872,2]
[367516760,1750840238402,-460.0,0.00016872,2]
[367516761,1750840238411,-460.0,0.00016872,2]
[367516762,1750840238420,-405.30714718,0.00016872,2]
[367516763,1750840238430,-404.37876923,0.00016872,2]
[367516764,1750840238440,-460.0,0.00016872,2]
[367516765,1750840238451,-453.07188305,0.00016872,2]
[367516766,1750840238461,-254.56665283,0.00016872,2]
[367516767,1750840238470,-460.0,0.00016872,2]
[367516768,1750840238481,-460.0,0.00016872,2]
[367516769,1750840238492,-500.0,0.00016872,2]
[367516770,1750840238502,-460.0,0.00016873,2]
[367516771,1750840238513,-327.66373908,0.00016873,2]
[367516772,1750840238523,-357.76452755,0.00016873,2]
[367516773,1750840238533,-460.0,0.00016873,2]
[367516774,1750840238543,-460.0,0.00016873,2]
[367516775,1750840238552,-457.69444043,0.00016873,2]
[367516776,1750840238562,-458.03875855,0.00016873,2]
[367516777,1750840238572,-460.1753623,0.00016873,2]
[367516778,1750840238581,-556.26204884,0.00016873,2]
[367516779,1750840238591,-460.0,0.00016873,2]
[367516780,1750840238601,-460.0,0.00016873,2]
[367516781,1750840238610,-435.61114273,0.00016873,2]
[367516782,1750840238619,-460.0,0.00016873,2]
[367516783,1750840238628,-461.3545427,0.00016873,2]
[367516784,1750840238638,-460.0,0.00016873,2]
[367516785,1750840238647,-460.0,0.00016873,2]
[367516786,1750840238656,-460.0,0.00016873,2]
[367516787,1750840238666,-460.0,0.00016873,2]
[367516788,1750840238675,-460.0,0.00016873,2]
[367516789,1750840238684,-460.0,0.00016873,2]
[367516790,1750840238694,-460.0,0.00016873,2]
[367516791,1750840238703,-460.0,0.00017142,2]
[367516792,1750840238713,-490.69,0.00017142,2]
[367516793,1750840238723,-1865.62,0.00017142,2]
[367516794,1750840238732,-677.74,0.00017142,2]
[367516795,1750840238742,-2993.54,0.00017142,2]
[367516796,1750840238752,-460.0,0.00017142,2]
[367516797,1750840238762,-460.0,0.00017142,2]
[367516798,1750840238771,-460.0,0.00017142,2]
[367516799,1750840238781,-2535.9,0.00017142,2]
[367516800,1750840238790,-500.0,0.00017143,2]
[367516801,1750840238800,-460.0,0.00017143,2]
[367516802,1750840238810,-606.63,0.00017143,2]
[367516803,1750840238819,-460.0,0.00017143,2]
[367516804,1750840238829,-460.0,0.00017143,2]
[367516805,1750840238838,-460.0,0.00017143,2]
[367516806,1750840238848,-518.73,0.00017143,2]
[367516807,1750840238857,-516.42086991,0.00017143,2]
[367516808,1750840238866,-542.7,0.00017143,2]
[367516809,1750840238876,-460.0,0.00017143,2]
[367516810,1750840238885,-7498.48,0.00017143,2]
[367516811,1750840238895,-460.0,0.00017143,2]
[367516812,1750840238904,-460.0,0.00017143,2]
[367516813,1750840238914,-494.56,0.00017143,2]
[367516814,1750840238923,-938.35,0.00017143,2]
[367516815,1750840238933,-460.0,0.00017144,2]
[367516816,1750840238943,-460.0,0.00017144,2]
[367516817,1750840238952,-460.0,0.00017144,2]
[367516818,1750840238962,-460.0,0.00017144,2]
[367516819,1750840238971,-252.96231334,0.00017144,2]
[367516820,1750840238981,-460.0,0.00017144,2]
[367516821,1750840238991,-460.0,0.00017144,2]
[367516822,1750840239000,-460.0,0.00017144,2]
[367516823,1750840239010,-460.0,0.00017144,2]
[367516824,1750840239019,-460.0,0.00017144,2]
[367516825,1750840239029,-496.92530948,0.00017144,2]
[367516826,1750840239038,-460.0,0.00017144,2]
[367516827,1750840239047,-693.84,0.00017144,2]
[367516828,1750840239056,-460.0,0.00017144,2]
[367516829,1750840239068,-460.0,0.00017144,2]
[367516830,1750840239078,-486.8,0.00017144,2]
[367516831,1750840239087,-150.98516034,0.00017144,2]
[367516832,1750840239097,-4900.23,0.00017144,2]
[367516833,1750840239107,-460.0,0.00017144,2]
[367516834,1750840239118,-533.08,0.00017144,2]
[367516835,1750840239128,-460.0,0.00017144,2]
[367516836,1750840239138,-513.75,0.00017144,2]
[367516837,1750840239149,-460.0,0.00017144,2]
[367516838,1750840239159,-460.0,0.00017144,2]
[367516839,1750840239170,-460.0,0.00017144,2]
[367516840,1750840239179,-398.63005472,0.00017144,2]
[367516841,1750840239192,-568.21,0.00017145,2]
[367516842,1750840239203,-536.1470737,0.00017145,2]
[367516843,1750840239212,-440.0,0.00017145,2]
[367516844,1750840239222,-460.0,0.00017145,2]
[367516845,1750840239231,-460.0,0.00017146,2]
[367516846,1750840239242,-460.0,0.00017146,2]
[367516847,1750840239252,-535.27,0.00017146,2]
[367516848,1750840239261,-277.73767652,0.00017147,2]
[367516849,1750840239272,-2050.0404603,0.00017198,2]
[367516850,1750840239281,-3440.09265389,0.0001732,2]
[367516851,1750840239291,-268.22708532,0.00017363,2]
[367516852,1750840239300,-460.0,0.00017416,2]
[367516853,1750840239310,-490.69,0.00017416,2]
[367516856,1750840239457,-1865.62,0.00017416,2]
[367516857,1750840239472,-677.74,0.00017416,2]
[367516858,1750840239482,-2993.54,0.00017416,2]
[367516859,1750840239493,-460.0,0.00017416,2]